Workbook

Sheet Sheet1
A1: 附件7
A2: 部门绩效自评结果公开汇总表
A4: 主管部门： | F4: 单位：万元
A5: 序号 | B5: 项目名称 | C5: 项目实施单位 | D5: 预算数 （调整后） | E5: 执行数 （至2022年底） | F5: 结余交回财政数 | G5: 自评得分 | H5: 自评结果应用意见
A6: 1 | B6: 文件资料印刷费 | C6: 石家庄市财政局 | D6: 39.00 | E6: 29.7187 | F6: =D6-E6 -> 9.2813 | G6: 95
A7: 2 | B7: 办公设备购置费 | C7: 石家庄市财政局 | D7: 33 | E7: 32.7831 | F7: =D7-E7 -> 0.2169 | G7: 100
A8: 3 | B8: 党组织活动经费 | C8: 石家庄市财政局 | D8: 10.00 | E8: 8.624 | F8: =D8-E8 -> 1.376 | G8: 97.3
A9: 4 | B9: 业务培训费 | C9: 石家庄市财政局 | D9: 70.00 | E9: 8.2711 | F9: =D9-E9 -> 61.7289 | G9: 95
A10: 5 | B10: 外部审计、监督、检查等保障经费 | C10: 石家庄市财政局 | D10: 30.00 | E10: 30 | F10: =D10-E10 -> 0 | G10: 100
A11: 6 | B11: 老干部工作经费 | C11: 石家庄市财政局 | D11: 10.00 | E11: 9.99911 | F11: =D11-E11 -> 0.00089 | G11: 100
A12: 7 | B12: 移动办公数据流量处理经费 | C12: 石家庄市财政局 | D12: 5.00 | E12: 5 | F12: =D12-E12 -> 0 | G12: 100
A13: 8 | B13: 场地租赁费用 | C13: 石家庄市财政局 | D13: 50.00 | E13: 50 | F13: =D13-E13 -> 0 | G13: 100
A14: 9 | B14: 全市专项债券项目谋划推进工作经费 | C14: 石家庄市财政局 | D14: 448.00 | E14: 102.1722 | F14: =D14-E14 -> 345.8278 | G14: 95
A15: 10 | B15: 全市高端会计人才选拔培养经费 | C15: 石家庄市财政局 | D15: 39.00 | E15: 0 | F15: =D15-E15 -> 39 | G15: 0
A16: 11 | B16: 法律服务及普法宣传教育费 | C16: 石家庄市财政局 | D16: 18 | E16: 14.613 | F16: =D16-E16 -> 3.387 | G16: 95.8
A17: 12 | B17: 业务咨询委托费 | C17: 石家庄市财政局 | D17: 175.00 | E17: 94.88095 | F17: =D17-E17 -> 80.11905 | G17: 95
A18: 13 | B18: 省提前下达2022年一事一议财政奖补工作经费 | C18: 石家庄市财政局 | D18: 35.00 | E18: 34.99974 | F18: =D18-E18 -> 0.00026 | G18: 100
A19: 14 | B19: 省下达2022年农村财会人员培训经费 | C19: 石家庄市财政局 | D19: 20.00 | E19: 0 | F19: =D19-E19 -> 20 | G19: 0
A20: 15 | B20: 网络安全体系建设 | C20: 石家庄市财政局 | D20: 15.53 | E20: 15.52825 | F20: =D20-E20 -> 0.00175 | G20: 100
A21: 16 | B21: 财政数据中心运营管理建设项目 | C21: 石家庄市财政局 | D21: 7.93 | E21: 7.93 | F21: =D21-E21 -> 0 | G21: 100
A22: 17 | B22: 更新公务用车项目经费 | C22: 石家庄市财政局 | D22: 25.00 | E22: 24.723972 | F22: =D22-E22 -> 0.276028 | G22: 100
A23: 18 | B23: 专用材料购置 | C23: 支付中心 | D23: 19 | E23: 19 | F23: =D23-E23 -> 0 | G23: 100
A24: 19 | B24: 专用设备维修 | C24: 支付中心 | D24: 13 | E24: 13 | F24: =D24-E24 -> 0 | G24: 100
A25: 20 | B25: 支付管理劳务费 | C25: 支付中心 | D25: 397.88 | E25: 362.17 | F25: =D25-E25 -> 35.71 | G25: 98.8
A26: 21 | B26: 文件资料印刷费 | C26: 支付中心 | D26: 8 | E26: 7.54 | F26: =D26-E26 -> 0.46 | G26: 99.7
A27: 22 | B27: 公务用车租赁费 | C27: 支付中心 | D27: 4.38 | E27: 1.81 | F27: =D27-E27 -> 2.57 | G27: 90
A28: 23 | B28: 办公设备购置 | C28: 支付中心 | D28: 12 | E28: 10.28 | F28: =D28-E28 -> 1.72 | G28: 95.5
A29: 24 | B29: 党组织活动经费 | C29: 支付中心 | D29: 1.3 | E29: 1.3 | F29: =D29-E29 -> 0 | G29: 100
A30: 25 | B30: 公务用车购置 | C30: 支付中心 | D30: 12 | E30: 12 | F30: =D30-E30 -> 0 | G30: 100
A31: 26 | B31: 公物仓专项购置经费 | C31: 石家庄市行政事业单位国有资产中心 | D31: 60 | E31: 45.267 | F31: =D31-E31 -> 14.733 | G31: 95
A32: 27 | B32: 办公设备购置费 | C32: 石家庄市行政事业单位国有资产中心 | D32: 10 | E32: 0 | F32: =D32-E32 -> 10 | G32: 90
A33: 28 | B33: 业务培训费 | C33: 石家庄市行政事业单位国有资产中心 | D33: 8 | E33: 0 | F33: =D33-E33 -> 8 | G33: 90
A34: 29 | B34: 国资管理劳务费 | C34: 石家庄市行政事业单位国有资产中心 | D34: 14 | E34: 14 | F34: =D34-E34 -> 0 | G34: 100
A35: 30 | B35: 党组织活动经费 | C35: 石家庄市行政事业单位国有资产中心 | D35: 1.2 | E35: 1.0558 | F35: =D35-E35 -> 0.1442 | G35: 97.9
A36: 31 | B36: 专用设备维修费 | C36: 石家庄市行政事业单位国有资产中心 | D36: 5 | E36: 0.88 | F36: =D36-E36 -> 4.12 | G36: 90
A37: 32 | B37: 工作场地租用费 | C37: 石家庄市行政事业单位国有资产中心 | D37: 121.72 | E37: 121.72 | F37: =D37-E37 -> 0 | G37: 100
A38: 33 | B38: 业务咨询委托费 | C38: 石家庄市行政事业单位国有资产中心 | D38: 50 | E38: 31.462 | F38: =D38-E38 -> 18.538 | G38: 99.8
A39: 34 | B39: 办公设备购置费 | C39: 石家庄市非税收入中心 | D39: 9 | E39: 8.99 | F39: 0.01 | G39: 100
A40: 35 | B40: 党组织活动经费 | C40: 石家庄市非税收入中心 | D40: 0.99 | E40: 0.9623 | F40: 0.0277 | G40: 100
A41: 36 | B41: 业务培训费 | C41: 石家庄市非税收入中心 | D41: 2 | E41: 0 | F41: 2 | G41: 90
A42: 37 | B42: 业务咨询委托费 | C42: 石家庄市非税收入中心 | D42: 7 | E42: 5.7116 | F42: 1.2884 | G42: 96
A43: 38 | B43: 工作场地租用费 | C43: 石家庄市非税收入中心 | D43: 20 | E43: 19.332 | F43: 0.668 | G43: 100
A44: 39 | B44: 票据印刷费 | C44: 石家庄市非税收入中心 | D44: 50 | E44: 26 | F44: 24 | G44: 94
A45: 40 | B45: 法律服务及普法宣传教育费 | C45: 石家庄市非税收入中心 | D45: 30 | E45: 30 | F45: 0 | G45: 100
A46: 41 | B46: 中介机构评估评价费 | C46: 石家庄市政府投资中心 | D46: 260 | E46: 260 | F46: =D46-E46 -> 0 | G46: 100
A47: 42 | B47: 办公设备购置费 | C47: 石家庄市政府投资中心 | D47: 5 | E47: 1.828 | F47: =D47-E47 -> 3.172 | G47: 93.66
A48: 43 | B48: 文件资料印刷费 | C48: 石家庄市政府投资中心 | D48: 2 | E48: 0 | F48: =D48-E48 -> 2 | G48: 90
A49: 44 | B49: 内勤人员劳务费 | C49: 石家庄市政府投资中心 | D49: 10 | E49: 8.752 | F49: =D49-E49 -> 1.248 | G49: 98.75
A50: 45 | B50: 党组织活动经费 | C50: 石家庄市政府投资中心 | D50: 1.5 | E50: 1.05 | F50: =D50-E50 -> 0.45 | G50: 97
A51: 46 | B51: 工作场地租用费 | C51: 石家庄市会计人员从业资格证管理中心 | D51: 9 | E51: 9 | F51: 0 | G51: 100
A52: 47 | B52: 省提前下达2022年会计资格考试考务费 | C52: 石家庄市会计人员从业资格证管理中心 | D52: 110 | E52: 55 | F52: 55 | G52: 75
A53: 48 | B53: 会计人员管理劳务费 | C53: 石家庄市会计人员从业资格证管理中心 | D53: 20 | E53: 17.64 | F53: 2.36 | G53: 98
A54: 49 | B54: 考试考务费 | C54: 石家庄市会计人员从业资格证管理中心 | D54: 850 | E54: 131.05 | F54: 718.95 | G54: 95
A55: 50 | B55: 党组织活动经费 | C55: 石家庄市会计人员从业资格证管理中心 | D55: 0.18 | E55: 0 | F55: 0.18 | G55: 85
A56: 51 | B56: 办公设备购置费 | C56: 石家庄市会计人员从业资格证管理中心 | D56: 3 | E56: 0 | F56: 3 | G56: 90
A57: 52 | B57: 公车租赁费 | C57: 石家庄市会计人员从业资格证管理中心 | D57: 4.38 | E57: 4.38 | F57: 0 | G57: 100
